bitfinex-derivatives/quotes_SOLF0:USTF0_20250831
["timestamp","ask_amount","ask_price","bid_price","bid_amount"]
[1756633403071,2.35154149,205.26,205.21,7.91578357]
[1756633403478,0.04,205.25,205.21,7.91578357]
[1756633403777,2.35154149,205.26,205.21,7.91578357]
[1756633404179,0.04,205.25,205.21,7.91578357]
[1756633404378,2.35154149,205.26,205.21,7.91578357]
[1756633404574,2.35154149,205.23,205.21,0.03578357]
[1756633404778,2.35154149,205.23,205.15,7.88]
[1756633404779,0.04,205.22,205.15,7.88]
[1756633405075,2.39154149,205.19,205.13,7.88]
[1756633406174,0.03551898,205.18,205.12,7.88]
[1756633407481,0.04,205.15,205.12,7.88]
[1756633408978,2.39154149,205.13,205.05,7.88]
[1756633409280,2.35154149,205.09,205.03,7.88]
[1756633409872,0.03539987,205.08,205.02,4.05285142]
[1756633410075,0.03539987,205.08,205.03,7.88]
[1756633410376,0.03539987,205.08,205.01,7.88]
[1756633414576,2.38694136,205.08,205.01,7.88]
[1756633414784,0.03539987,205.08,205.01,7.88]
[1756633416085,2.38694136,205.08,205.01,7.88]
[1756633417388,2.35154149,205.05,205.01,7.88]
[1756633418088,2.35154149,205.05,204.95,7.82]
[1756633418287,2.35154149,205.05,204.96,7.82]
[1756633418782,0.03649094,205.03,204.96,7.82]
[1756633420682,0.03649094,205.03,204.96,10.17154149]
[1756633420884,2.35154149,205.11,204.99,2.35154149]
[1756633421188,2.35154149,205.11,205.0,7.82]
[1756633422189,0.09,205.1,205.03,0.03108623]
[1756633422388,0.09,205.1,205.03,7.85108623]
[1756633426392,2.35154149,205.08,205.03,0.03108623]
[1756633426587,2.35154149,205.1,205.04,7.82]
[1756633427886,2.44154149,205.12,205.04,7.82]
[1756633430795,0.09,205.08,205.04,7.82]
[1756633431091,0.09,205.08,205.03,0.03108623]
[1756633431290,2.35154149,205.04,205.03,0.03108623]
[1756633434890,2.44154149,205.04,205.03,0.03108623]
[1756633435189,2.44154149,205.04,204.96,7.82]
[1756633436795,2.35154149,205.01,204.93,7.82]
[1756633437791,2.44154149,205.01,204.93,7.82]
[1756633439590,0.03124826,204.99,204.93,7.82]
[1756633450098,2.42154149,204.98,204.9,7.29]
[1756633452494,2.42154149,204.98,204.84,7.75844139]
[1756633452495,2.35154149,204.95,204.87,7.29]
[1756633453701,0.03354405,204.93,204.87,7.29]
[1756633456396,2.35154149,204.92,204.87,7.29]
[1756633456808,0.07,204.91,204.8,7.29]
[1756633457000,2.35154149,204.89,204.8,7.29]
[1756633457600,0.03073763,204.87,204.8,7.29]
[1756633457808,2.35154149,204.86,204.8,7.29]
[1756633461107,6.95073763,204.87,204.8,7.29]
[1756633461310,2.35154149,204.86,204.8,7.29]
[1756633462711,0.03073763,204.87,204.8,7.29]
[1756633462917,20.09084985,205.03,204.73,80.52766511]
[1756633462918,2.35154149,204.96,204.83,7.29]
[1756633463112,2.35154149,204.93,204.83,7.29]
[1756633463312,2.35154149,204.95,204.83,7.29]
[1756633464214,2.35154149,204.95,204.88,7.29]
[1756633464909,0.07,204.97,204.88,7.29]
[1756633465115,2.35154149,204.95,204.88,7.29]
[1756633467415,2.48154149,204.95,204.88,7.29]
[1756633468518,2.35154149,204.93,204.87,7.3241806]
[1756633471823,2.35154149,205.04,204.87,7.3241806]
[1756633472024,2.35154149,204.96,204.87,7.3241806]
[1756633472224,2.35154149,204.96,204.87,7.29]
[1756633472722,2.35154149,204.96,204.9,7.29]
[1756633482333,2.48154149,204.96,204.9,7.29]
[1756633483237,2.35154149,204.96,204.89,0.03339442]
[1756633483437,2.35154149,204.96,204.89,7.26339442]
[1756633484435,30.2,204.95,204.89,7.26339442]
[1756633486840,2.35154149,204.96,204.89,7.26339442]
[1756633487241,29.6,204.95,204.89,7.26339442]
[1756633487845,2.35154149,204.96,204.89,7.26339442]
[1756633488141,29.4,204.95,204.89,7.26339442]
[1756633488446,0.13,204.93,204.89,7.26339442]
[1756633488647,0.13,204.93,204.89,0.03339442]
[1756633488947,0.13,204.93,204.9,7.23]
[1756633489548,83.4,204.92,204.89,7.26339442]
[1756633489748,2.48154149,204.93,204.89,7.26339442]
[1756633490348,33.82154149,204.93,204.89,7.26339442]
[1756633490646,0.13,204.92,204.89,7.26339442]
[1756633491048,0.13,204.92,204.89,7.23]
[1756633492246,30.43154149,204.93,204.89,7.23]
[1756633492947,30.43154149,204.93,204.88,0.03141415]
[1756633493143,30.43154149,204.93,204.89,7.23]
[1756633493447,30.56154149,204.93,204.88,0.03141415]
[1756633493647,30.43154149,204.93,204.89,7.23]
[1756633494847,2.35154149,204.93,204.88,0.03141415]
[1756633495152,2.35154149,204.93,204.89,7.23]
[1756633495352,2.35154149,204.93,204.88,0.03141415]
[1756633495548,0.13,204.92,204.89,7.23]
[1756633497148,2.35154149,204.93,204.88,0.03141415]
[1756633497351,2.48154149,204.93,204.89,7.23]
[1756633499055,0.13,204.92,204.89,7.23]
[1756633499351,0.13,204.92,204.88,0.03141415]
[1756633499748,2.35154149,204.93,204.88,0.03141415]
[1756633499953,0.13,204.92,204.88,0.03141415]
[1756633500654,0.13,204.89,204.88,0.03141415]
[1756633501560,0.61,204.89,204.88,0.03141415]
[1756633501762,0.61,204.89,204.82,7.23]
[1756633501957,2.35154149,204.93,204.78,4.07964013]
[1756633501958,2.35154149,204.87,204.79,7.23]
[1756633502858,19.68,204.86,204.79,7.23]
[1756633503061,2.35154149,204.84,204.76,4.07964013]
[1756633503256,2.35154149,204.84,204.77,7.23]
[1756633507163,0.13,204.83,204.77,7.23]
[1756633507964,22.28,204.83,204.77,7.23]
[1756633509065,2.35154149,204.84,204.77,7.23]
[1756633509066,27.05154149,204.84,204.77,7.23]
[1756633509662,2.35154149,204.84,204.77,7.23]
[1756633511566,0.03374425,204.85,204.77,7.23]
[1756633511966,0.03374425,204.85,204.77,11.325692]
[1756633512167,0.03374425,204.85,204.78,7.22]
[1756633517769,2.35154149,204.84,204.78,7.22]
[1756633517971,2.45154149,204.84,204.78,7.22]
[1756633525871,0.03374425,204.85,204.78,7.22]
[1756633526075,9.45154149,204.83,204.72,7.22]
[1756633527280,0.03075006,204.8,204.72,7.22]
[1756633528282,2.51229155,204.8,204.72,7.22]
[1756633530479,2.35154149,204.78,204.69,7.22]
[1756633531678,0.03177126,204.76,204.69,7.22]
[1756633544499,0.17177126,204.76,204.69,7.22]
[1756633547301,2.35154149,204.74,204.67,7.43]
[1756633547998,0.03195433,204.73,204.67,7.43]
[1756633549305,2.35154149,204.71,204.65,7.43]
[1756633550204,2.35154149,204.68,204.6,4.09683995]
[1756633550405,2.35154149,204.69,204.61,7.43]
[1756633551005,0.03420514,204.67,204.61,7.43]
[1756633551811,0.03420514,204.67,204.61,11.52683995]
[1756633552007,0.03420514,204.67,204.62,7.43]
[1756633553209,0.03420514,204.67,204.61,7.43]
[1756633554018,0.03420514,204.67,204.61,4.09683995]
[1756633554212,0.03420514,204.67,204.62,7.43]
[1756633560217,2.35154149,204.82,204.62,7.43]
[1756633560218,7.81239134,204.82,204.62,7.43]
[1756633560417,2.35154149,204.74,204.63,7.43]
[1756633561020,2.35154149,204.74,204.64,2.35154149]
[1756633561319,2.35154149,204.74,204.65,7.43]
[1756633561822,2.35154149,204.74,204.68,7.43]
[1756633562525,0.14,204.75,204.68,7.43]
[1756633562717,0.17,204.78,204.68,7.43]
[1756633563419,0.17,204.78,204.71,0.03408532]
[1756633563621,0.17,204.78,204.71,7.46408532]
[1756633570230,23.93154149,204.79,204.71,7.46408532]
[1756633570431,0.17,204.78,204.71,7.46408532]
[1756633571431,0.17,204.75,204.71,7.46408532]
[1756633572329,2.35154149,204.73,204.71,7.46408532]
[1756633572530,2.52154149,204.73,204.71,0.03408532]
[1756633572927,0.17,204.73,204.71,0.03408532]
[1756633573526,2.35154149,204.74,204.71,0.03408532]
[1756633573926,0.17,204.73,204.71,0.03408532]
[1756633574231,2.35154149,204.74,204.71,0.03408532]
[1756633574431,21.58,204.79,204.71,0.03408532]
[1756633574628,0.17,204.72,204.71,0.03408532]
[1756633575129,0.17,204.79,204.72,7.7]
[1756633575432,2.35154149,204.81,204.72,7.7]
[1756633575629,5.63084985,204.87,204.75,2.35154149]
[1756633575835,123.48154149,204.87,204.76,7.7]
[1756633576227,329.00991025,204.86,204.76,7.7]
[1756633576429,2.35154149,204.83,204.79,0.03075805]
[1756633576726,2.52154149,204.8,204.79,0.03075805]
[1756633577625,0.17,204.8,204.79,0.03075805]
[1756633577827,2.52154149,204.8,204.79,0.03075805]
[1756633578028,2.52154149,204.8,204.67,2.35154149]
[1756633578029,2.83154149,204.8,204.7,7.7]
[1756633578225,0.17,204.78,204.68,7.7]
[1756633578426,2.35154149,204.77,204.68,7.7]
[1756633578728,121.06,204.76,204.68,7.7]
[1756633578934,121.14,204.78,204.69,11.79683995]
[1756633579234,121.14,204.78,204.72,7.7]
[1756633579432,123.49154149,204.78,204.72,7.7]
[1756633580733,121.14,204.78,204.72,7.7]
[1756633582335,0.17,204.75,204.69,7.7]
[1756633582536,0.17,204.72,204.66,11.79683995]
[1756633582733,0.17,204.72,204.66,7.7]
[1756633582933,0.17,204.72,204.66,11.79683995]
[1756633583240,2.35154149,204.73,204.66,11.79683995]
[1756633584336,0.03071687,204.72,204.66,11.79683995]
[1756633584834,0.03071687,204.72,204.66,7.7]
[1756633589436,0.17,204.7,204.66,7.7]
[1756633589641,0.17,204.7,204.63,11.79683995]
[1756633590141,0.17,204.7,204.63,7.7]
[1756633590741,2.35154149,204.71,204.63,7.7]
[1756633590935,86.04,204.7,204.63,7.7]
[1756633591135,108.35154149,204.71,204.63,7.7]
[1756633591440,2.35154149,204.71,204.64,7.7]
[1756633591640,0.03071687,204.72,204.64,7.7]
[1756633591838,2.35154149,204.8,204.68,7.7]
[1756633592041,123.69154149,204.8,204.68,7.7]
[1756633592230,0.2,204.79,204.68,7.7]
[1756633592436,121.34,204.78,204.68,7.7]
[1756633593240,121.34,204.78,204.71,7.73499213]
[1756633593542,2.35154149,204.77,204.71,7.73499213]
[1756633593736,2.35154149,204.77,204.71,0.03499213]
[1756633593737,0.2,204.76,204.71,0.03499213]
[1756633593934,0.2,204.73,204.71,0.03499213]
[1756633595640,0.2,204.72,204.71,0.03499213]
[1756633595842,0.2,204.78,204.71,0.03499213]
[1756633596342,0.2,204.75,204.71,0.03499213]
[1756633596741,0.2,204.75,204.71,7.73499213]
[1756633597138,0.2,204.72,204.71,0.03499213]
[1756633597952,0.2,204.72,204.66,7.7]
[1756633597953,2.35154149,204.7,204.66,7.7]
[1756633598141,2.55154149,204.7,204.66,7.7]
[1756633600450,0.2,204.69,204.66,7.7]
[1756633601048,2.35154149,204.7,204.66,7.7]
[1756633601245,2.58642009,204.7,204.66,7.7]
[1756633602046,2.38642009,204.7,204.66,7.7]
[1756633602252,0.2,204.69,204.62,7.21]
[1756633602451,6.44,204.69,204.62,7.21]
[1756633602653,9.7,204.69,204.62,7.21]
[1756633604653,2.55154149,204.67,204.6,7.21]
[1756633605149,0.2,204.67,204.6,7.21]
[1756633605460,2.35154149,204.65,204.58,7.21]
[1756633607746,0.03349104,204.66,204.58,7.21]
[1756633613848,0.03349104,204.66,204.58,4.10715018]
[1756633614054,0.03349104,204.66,204.59,7.21]
[1756633622457,2.55154149,204.65,204.59,7.21]
[1756633623264,0.2,204.65,204.59,7.21]
[1756633623459,2.55154149,204.63,204.59,7.21]
[1756633624756,0.2,204.62,204.59,7.21]
[1756633624954,2.55154149,204.63,204.55,11.31715018]
[1756633626072,0.03400564,204.61,204.55,11.31715018]
[1756633626565,0.03400564,204.61,204.55,7.21]
[1756633626958,2.35154149,204.6,204.55,7.21]
[1756633627158,2.35154149,204.6,204.52,4.10715018]
[1756633627360,0.2,204.59,204.52,7.21]
[1756633628360,0.2,204.57,204.51,4.10715018]
[1756633628561,0.2,204.52,204.46,7.94]
[1756633628762,27.38,204.51,204.46,7.94]
[1756633628962,27.38,204.51,204.45,4.10715018]
[1756633629162,2.55154149,204.5,204.46,7.94]
[1756633629363,0.2,204.5,204.44,7.94]
[1756633629667,30.48,204.5,204.44,7.94]
[1756633630764,32.83154149,204.5,204.44,7.94]
[1756633631361,2.35154149,204.47,204.41,12.04715018]
[1756633631563,55.32,204.46,204.4,7.94]
[1756633631766,57.67154149,204.46,204.4,7.94]
[1756633632171,0.03352556,204.45,204.4,7.94]
[1756633632570,0.03352556,204.45,204.39,4.10715018]
[1756633633170,0.03352556,204.45,204.4,12.04715018]
[1756633633465,328.48,204.55,204.4,12.04715018]
[1756633633466,330.83154149,204.55,204.43,4.10715018]
[1756633633666,330.83154149,204.55,204.44,7.94]
[1756633634661,330.83154149,204.55,204.47,0.03577687]
[1756633634866,328.48,204.55,204.47,7.97577687]
[1756633635159,122.02,204.54,204.47,7.97577687]
[1756633635470,122.02,204.54,204.47,0.03577687]
[1756633635471,0.24,204.51,204.47,0.03577687]
[1756633635770,0.24,204.48,204.47,0.03577687]
[1756633635964,0.24,204.48,204.39,7.94]
[1756633636171,2.35154149,204.46,204.39,7.94]
[1756633636565,2.59154149,204.48,204.39,7.94]
[1756633636762,122.28,204.47,204.39,7.94]
[1756633636970,2.59154149,204.48,204.39,7.94]
[1756633637170,122.28,204.47,204.39,7.94]
[1756633637371,0.0339187,204.45,204.39,7.94]
[1756633640169,2.38546019,204.45,204.39,7.94]
[1756633640372,2.38546019,204.45,204.35,7.94]
[1756633640567,2.35154149,204.42,204.35,7.94]
[1756633641371,0.03603774,204.41,204.35,7.94]
[1756633646476,2.38757923,204.41,204.35,7.94]
[1756633646675,27.71757923,204.41,204.35,7.94]
[1756633647877,27.71757923,204.41,204.3,7.94]
[1756633649671,0.03603774,204.41,204.32,2.35154149]
[1756633649876,0.03603774,204.41,204.33,7.94]
[1756633650178,0.27,204.42,204.33,7.94]
[1756633650375,0.03500604,204.39,204.33,7.94]
[1756633650977,2.38654753,204.39,204.33,7.94]
[1756633651174,2.5,204.38,204.27,7.94]
[1756633651375,0.27,204.35,204.27,7.94]
[1756633651885,2.38432693,204.33,204.27,7.94]
[1756633652280,0.03278544,204.33,204.27,7.94]
[1756633653085,0.03278544,204.33,204.27,10.29154149]
[1756633653280,0.03278544,204.33,204.25,7.94]
[1756633653584,0.03278544,204.33,204.26,7.94]
[1756633653784,0.27,204.36,204.26,7.94]
[1756633653981,0.03666916,204.32,204.26,7.94]
[1756633660191,119.71666916,204.32,204.26,7.94]
[1756633660590,123.33666916,204.32,204.26,7.94]
[1756633661087,0.03666916,204.32,204.26,7.94]
[1756633671399,0.03666916,204.32,204.26,10.29154149]
[1756633671699,328.76,204.4,204.3,4.10715018]
[1756633671897,328.76,204.4,204.31,11.84715018]
[1756633672093,329.06,204.4,204.31,7.74]
[1756633672294,2.35154149,204.44,204.32,6.45869167]
[1756633672601,37.47154149,204.44,204.33,7.74]
[1756633673102,2.35154149,204.44,204.36,7.77694386]
[1756633673301,37.09154149,204.44,204.36,7.77694386]
[1756633674297,0.3,204.43,204.36,7.77694386]
[1756633675601,2.65154149,204.43,204.36,7.77694386]
[1756633676698,68.4,204.42,204.36,7.77694386]
[1756633677300,2.65154149,204.43,204.36,7.77694386]
[1756633677503,34.98,204.42,204.36,7.77694386]
[1756633677900,65.64,204.41,204.36,7.77694386]
[1756633678099,65.94,204.41,204.36,7.77694386]
[1756633678400,96.82,204.41,204.37,7.74]
[1756633678709,2.35154149,204.42,204.36,7.77694386]
[1756633679808,0.3,204.44,204.36,7.77694386]
[1756633680001,123.4,204.43,204.36,7.77694386]
[1756633680507,123.36,204.43,204.36,7.77694386]
[1756633680701,0.3,204.44,204.36,7.77694386]
[1756633681006,125.73154149,204.43,204.36,7.77694386]
[1756633681708,2.35154149,204.43,204.36,7.77694386]
[1756633681903,0.3,204.44,204.36,7.77694386]
[1756633682207,2.65154149,204.44,204.36,7.77694386]
[1756633682403,37.21154149,204.44,204.36,7.77694386]
[1756633682599,2.65154149,204.44,204.36,7.77694386]
[1756633682798,328.92,204.51,204.36,7.77694386]
[1756633682799,0.3,204.47,204.37,7.74]
[1756633683002,82.28,204.47,204.39,7.74]
[1756633683206,0.3,204.47,204.39,7.74]
[1756633683405,329.22,204.51,204.39,11.84293586]
[1756633683608,123.42,204.5,204.42,7.74]
[1756633684208,329.22,204.51,204.42,7.74]
[1756633684405,123.4,204.5,204.42,7.74]
[1756633685708,329.22,204.51,204.42,7.74]
[1756633686007,123.36,204.5,204.42,7.74]
[1756633686209,0.3,204.48,204.41,0.03480238]
[1756633686605,328.92,204.51,204.41,0.03480238]
[1756633686606,452.24,204.51,204.42,7.74]
[1756633687211,328.92,204.51,204.42,10.09154149]
[1756633687411,328.92,204.51,204.43,7.74]
[1756633687914,328.92,204.51,204.45,2.35154149]
[1756633688216,328.92,204.51,204.46,7.81]
[1756633688511,328.92,204.51,204.45,2.35154149]
[1756633688708,328.92,204.51,204.47,7.81]
[1756633689313,328.92,204.51,204.46,0.03228159]
[1756633689509,0.29,204.5,204.46,0.03228159]
[1756633689913,0.29,204.49,204.46,0.03228159]
[1756633691514,123.46,204.48,204.46,0.03228159]
[1756633692710,123.38,204.48,204.46,0.03228159]
[1756633693110,123.67,204.48,204.46,0.03228159]
[1756633694509,2.35154149,204.56,204.46,0.03228159]
[1756633694714,123.53,204.55,204.47,7.81]
[1756633695218,123.53,204.55,204.49,0.03081454]
[1756633699226,2.35154149,204.54,204.49,0.03081454]
[1756633699418,0.29,204.53,204.49,0.03081454]
[1756633701522,2.35154149,204.54,204.49,0.03081454]
[1756633701716,0.29,204.53,204.49,0.03081454]
[1756633702015,2.64154149,204.57,204.5,7.81]
[1756633702215,123.08,204.56,204.5,7.81]
[1756633702921,0.29,204.55,204.51,0.03246193]
[1756633703121,0.29,204.55,204.51,7.84246193]
[1756633705821,0.29,204.55,204.51,0.03246193]
[1756633706121,123.32,204.57,204.52,7.81]
[1756633706514,123.32,204.57,204.51,0.03246193]
[1756633706515,123.32,204.57,204.51,7.84246193]
[1756633708824,0.3,204.61,204.51,7.84246193]
[1756633709027,123.12,204.61,204.51,7.84246193]
[1756633709221,123.12,204.61,204.51,7.81]
[1756633709618,123.12,204.61,204.54,7.84570891]
[1756633710421,122.82,204.61,204.54,0.03570891]
[1756633710620,2.65154149,204.6,204.54,0.03570891]
[1756633711727,0.3,204.6,204.54,7.84570891]
[1756633711931,123.0,204.62,204.54,7.84570891]
[1756633712323,331.07154149,204.64,204.57,7.81]
[1756633712324,328.72,204.64,204.57,7.81]
[1756633712523,451.8,204.64,204.57,7.81]
[1756633712817,8.19127478,204.81,204.49,2.35154149]
[1756633712818,0.3,204.7,204.6,7.81]
[1756633713018,123.08,204.69,204.6,7.81]
[1756633713324,123.16,204.68,204.6,7.81]
[1756633713924,123.16,204.68,204.62,0.03296621]
[1756633716631,122.98,204.68,204.62,0.03296621]
[1756633717136,0.3,204.65,204.62,0.03296621]
[1756633717633,0.3,204.64,204.62,0.03296621]
[1756633725229,93.77154149,204.67,204.62,0.03296621]
[1756633725435,0.27,204.63,204.53,7.49]
[1756633726335,2.35154149,204.64,204.53,7.49]
[1756633726538,0.23,204.63,204.53,7.49]
[1756633727037,0.23,204.6,204.53,7.49]
[1756633732939,0.03150332,204.61,204.53,7.49]
[1756633736938,0.23,204.68,204.57,2.35154149]
[1756633737243,0.23,204.68,204.58,7.49]
[1756633738240,0.27,204.71,204.61,7.49]
[1756633738437,0.27,204.71,204.61,7.52620711]
[1756633739146,0.27,204.71,204.62,7.49]
[1756633739743,2.35154149,204.7,204.62,7.49]
[1756633739942,0.27,204.69,204.62,7.49]
[1756633741142,2.35154149,204.67,204.61,0.03620711]
[1756633741339,103.25154149,204.67,204.61,0.03620711]
[1756633741539,103.25154149,204.67,204.58,7.49]
[1756633741948,0.27,204.66,204.62,0.03566225]
[1756633742144,103.25154149,204.67,204.62,0.03566225]
[1756633742451,0.27,204.66,204.62,0.03566225]
[1756633742643,103.25154149,204.67,204.62,0.03566225]
[1756633742845,0.27,204.66,204.62,0.03566225]
[1756633743040,103.25154149,204.67,204.62,0.03566225]
[1756633743446,0.27,204.65,204.62,0.03566225]
[1756633743745,2.35154149,204.67,204.62,0.03566225]
[1756633743746,30.08,204.67,204.63,7.49]
[1756633743944,0.27,204.67,204.63,7.49]
[1756633750658,0.27,204.67,204.63,7.22]
[1756633751054,0.27,204.67,204.62,0.03566225]
[1756633751249,111.08,204.68,204.62,0.03566225]
[1756633751449,0.27,204.67,204.62,0.03566225]
[1756633751654,0.27,204.65,204.62,0.03566225]
[1756633752557,0.27,204.64,204.62,0.03566225]
[1756633752861,2.62154149,204.63,204.62,0.03566225]
[1756633754063,3.10154149,204.63,204.62,0.03566225]
[1756633754362,2.62154149,204.63,204.62,0.03566225]
[1756633754864,2.62154149,204.63,204.54,7.22]
[1756633755060,2.62154149,204.6,204.54,7.22]
[1756633756066,35.04154149,204.6,204.54,7.22]
[1756633756259,0.03087045,204.59,204.53,7.22]
[1756633759167,0.27,204.68,204.57,2.35154149]
[1756633759371,31.35,204.68,204.58,7.22]
[1756633759670,2.35154149,204.67,204.58,7.22]
[1756633759869,31.35,204.68,204.58,7.22]
[1756633760164,33.70154149,204.68,204.58,7.22]
[1756633760570,2.62154149,204.68,204.62,7.22]
[1756633760772,31.72154149,204.68,204.62,7.22]
[1756633761169,2.62154149,204.68,204.62,7.22]
[1756633762873,2.62154149,204.68,204.61,0.03756609]
[1756633763972,0.31,204.63,204.61,0.03756609]
[1756633764173,2.35154149,204.65,204.61,0.03756609]
[1756633764373,0.31,204.63,204.61,0.03756609]
[1756633765268,2.66154149,204.65,204.61,7.25756609]
[1756633765670,2.66154149,204.65,204.62,7.22]
[1756633766675,28.82,204.66,204.62,7.22]
[1756633766876,58.0,204.67,204.61,7.25756609]
[1756633768880,2.66154149,204.68,204.61,7.25756609]
[1756633769073,83.7,204.67,204.61,7.25756609]
[1756633769580,108.18,204.67,204.61,7.25756609]
[1756633770982,2.66154149,204.68,204.61,7.25756609]
[1756633771284,0.31,204.64,204.61,0.03756609]
[1756633771677,0.31,204.63,204.61,0.03756609]
[1756633771878,0.31,204.64,204.61,0.03756609]
[1756633772079,0.31,204.63,204.61,0.03756609]
[1756633772376,2.35154149,204.65,204.61,0.03756609]
[1756633772777,0.31,204.64,204.61,0.03756609]
[1756633773079,2.35154149,204.65,204.61,0.03756609]
[1756633773278,0.31,204.64,204.61,0.03756609]
[1756633773681,0.31,204.63,204.61,0.03756609]
[1756633774681,0.31,204.64,204.61,0.03756609]
[1756633774881,55.15,204.64,204.61,0.03756609]
[1756633775083,2.66154149,204.65,204.61,7.25756609]
[1756633775882,0.31,204.65,204.62,7.22]
[1756633777083,83.9,204.66,204.62,7.22]
[1756633777482,0.31,204.66,204.62,7.22]
[1756633777781,2.35154149,204.69,204.62,7.49]
[1756633777985,121.54,204.67,204.61,0.03756609]
[1756633778178,121.54,204.67,204.58,7.49]
[1756633778588,0.33,204.66,204.62,0.03680274]
[1756633778884,0.33,204.66,204.62,7.52680274]
[1756633780086,0.33,204.66,204.63,7.49]
[1756633781479,0.33,204.66,204.62,0.03680274]
[1756633781480,0.33,204.68,204.62,0.03680274]
[1756633781780,0.33,204.65,204.62,0.03680274]
[1756633781985,2.35154149,204.66,204.62,0.03680274]
[1756633781986,0.33,204.64,204.62,0.03680274]
[1756633787383,2.35154149,204.66,204.62,0.03680274]
[1756633787687,60.43,204.69,204.63,7.49]
[1756633788184,0.85052302,204.72,204.63,7.49]
[1756633788383,121.42,204.72,204.63,7.49]
[1756633788885,0.33,204.73,204.63,7.49]
[1756633789088,121.75,204.73,204.63,7.49]
[1756633789488,0.33,204.73,204.63,9.84154149]
[1756633789688,0.33,204.73,204.64,2.35154149]
[1756633789881,0.33,204.73,204.65,7.49]
[1756633790082,121.42,204.75,204.65,7.49]
[1756633790278,450.35,204.76,204.65,7.49]
[1756633790591,328.93,204.76,204.68,7.49]
[1756633793391,121.42,204.75,204.68,7.49]
[1756633793589,121.42,204.74,204.68,7.49]
[1756633795488,0.33,204.73,204.67,0.0333612]
[1756633795681,2.35154149,204.72,204.67,0.0333612]
[1756633795889,0.33,204.7,204.67,0.0333612]
[1756633797493,0.33,204.71,204.67,0.0333612]
[1756633797695,2.35154149,204.69,204.67,0.0333612]
[1756633797991,121.73,204.68,204.67,0.0333612]
[1756633800192,1.18045027,204.73,204.67,0.0333612]
[1756633800393,121.4,204.72,204.68,7.49]
[1756633800592,121.4,204.72,204.67,0.0333612]
[1756633801096,0.33,204.7,204.67,0.0333612]
[1756633801287,0.33,204.71,204.67,0.0333612]
[1756633801494,0.33,204.7,204.67,0.0333612]
[1756633801690,2.35154149,204.7,204.67,0.0333612]
[1756633801895,0.33,204.68,204.67,0.0333612]
[1756633803298,121.75,204.68,204.67,0.0333612]
[1756633803698,121.42,204.68,204.67,0.0333612]
[1756633804301,0.33,204.72,204.67,7.5233612]
[1756633804500,121.73,204.72,204.68,7.49]
[1756633804701,328.93,204.76,204.67,0.0333612]
[1756633804903,121.46,204.75,204.67,0.0333612]
[1756633806599,0.33,204.74,204.67,0.0333612]
[1756633806799,2.68154149,204.74,204.67,0.0333612]
[1756633808699,121.44,204.73,204.67,0.0333612]
[1756633809400,121.46,204.72,204.67,0.0333612]
[1756633809600,2.68154149,204.74,204.68,7.57]
[1756633809794,121.46,204.73,204.68,7.57]
[1756633809999,121.46,204.73,204.67,0.0333612]
[1756633810196,0.31,204.71,204.67,0.0333612]
[1756633813601,121.69,204.71,204.67,0.0333612]
[1756633814202,2.66154149,204.74,204.67,7.6033612]
[1756633814404,121.38,204.73,204.67,7.6033612]
[1756633815199,0.31,204.8,204.7,7.57]
[1756633815506,121.38,204.78,204.7,7.57]
[1756633816004,121.38,204.78,204.72,0.03118325]
[1756633817908,2.66154149,204.8,204.72,0.03118325]
[1756633818300,10.96,204.79,204.72,0.03118325]